bitfinex/quotes_SOLUSD_20250708
["timestamp","ask_amount","ask_price","bid_price","bid_amount"]
[1751940844732,7.46419017,148.57,148.54,4.56134292]
[1751940844913,7.46419017,148.56,148.54,4.56134292]
[1751940845237,18.64964886,148.57,148.54,4.56134292]
[1751940845409,7.46709566,148.56,148.54,4.56134292]
[1751940845604,7.46709566,148.56,148.55,4.56134292]
[1751940845843,0.03,148.6,148.55,12.38354292]
[1751940846017,7.46777589,148.59,148.57,4.56134292]
[1751940846335,18.67964886,148.6,148.57,4.56134292]
[1751940846534,7.46881204,148.59,148.55,7.8222]
[1751940846737,0.03,148.6,148.58,4.56134292]
[1751940847122,0.03,148.6,148.57,4.56134292]
[1751940847315,0.03,148.6,148.55,25.1022]
[1751940847513,0.03,148.6,148.57,4.56134292]
[1751940849014,0.03,148.6,148.58,4.56134292]
[1751940849720,0.03,148.6,148.59,4.56134292]
[1751940849925,0.03,148.6,148.59,10.57524292]
[1751940850442,0.03,148.6,148.59,12.13424292]
[1751940851332,0.03,148.6,148.59,18.8641709]
[1751940851542,0.03,148.6,148.59,36.1441709]
[1751940854132,0.03,148.65,148.62,26.0]
[1751940854335,0.03,148.65,148.64,4.56134292]
[1751940855150,0.03,148.65,148.64,12.21684292]
[1751940855847,4.56134292,148.74,148.65,0.14216157]
[1751940856140,4.56134292,148.73,148.69,4.56134292]
[1751940856321,4.56134292,148.74,148.69,4.56134292]
[1751940856662,4.76134292,148.75,148.71,4.56134292]
[1751940856812,0.2,148.75,148.72,4.56134292]
[1751940859348,0.2,148.75,148.71,4.56134292]
[1751940859547,0.2,148.75,148.73,4.56134292]
[1751940859749,0.2,148.75,148.74,4.56134292]
[1751940862226,0.2,148.75,148.74,11.28448397]
[1751940863744,0.2,148.75,148.74,4.56134292]
[1751940864047,0.2,148.75,148.74,11.28448397]
[1751940864839,0.2,148.75,148.74,37.28448397]
[1751940867646,0.2,148.75,148.74,129.28798846]
[1751940867822,0.2,148.75,148.74,129.76203732]
[1751940868024,0.2,148.8,148.77,26.0]
[1751940868260,0.2,148.8,148.79,4.56134292]
[1751940868950,0.2,148.8,148.79,11.28222469]
[1751940873029,0.2,148.8,148.79,4.56134292]
[1751940873229,0.2,148.8,148.79,11.28222469]
[1751940873543,4.76134292,148.8,148.75,87.3]
[1751940873932,4.76134292,148.8,148.75,113.3]
[1751940874130,4.56134292,148.79,148.75,113.3]
[1751940874435,4.56134292,148.79,148.75,26.0]
[1751940874846,4.56134292,148.79,148.75,30.56134292]
[1751940875056,4.76134292,148.8,148.75,30.56134292]
[1751940877253,4.56134292,148.79,148.75,30.56134292]
[1751940879242,0.2,148.8,148.75,30.56134292]
[1751940879443,4.56134292,148.79,148.75,30.56134292]
[1751940879972,4.76134292,148.8,148.75,30.56134292]
[1751940881540,4.76134292,148.8,148.75,26.0]
[1751940881541,4.56134292,148.79,148.75,26.0]
[1751940881746,4.56134292,148.78,148.75,26.0]
[1751940882659,4.56134292,148.77,148.73,30.56134292]
[1751940883062,4.56134292,148.77,148.74,26.0]
[1751940883438,6.92052676,148.8,148.71,87.3]
[1751940883439,4.56134292,148.78,148.71,87.3]
[1751940883647,4.56134292,148.74,148.7,99.76004292]
[1751940883846,4.56134292,148.74,148.69,4.56134292]
[1751940884057,4.56134292,148.72,148.66,95.1987]
[1751940884386,4.56134292,148.72,148.69,26.0]
[1751940884677,4.56134292,148.73,148.69,26.0]
[1751940885968,4.56134292,148.73,148.69,30.56134292]
[1751940888483,18.64964886,148.75,148.7,4.56134292]
[1751940888688,4.56134292,148.77,148.73,4.56134292]
[1751940888848,11.74134292,148.78,148.74,4.56134292]
[1751940889159,7.18,148.78,148.74,4.56134292]
[1751940889767,11.74134292,148.78,148.74,4.56134292]
[1751940891262,4.56134292,148.77,148.73,4.56134292]
[1751940892391,4.56134292,148.79,148.75,4.56134292]
[1751940893578,7.63060926,148.8,148.75,4.56134292]
[1751940893579,12.19195218,148.8,148.75,4.56134292]
[1751940893789,4.56134292,148.79,148.75,4.56134292]
[1751940894091,11.99195218,148.79,148.75,4.56134292]
[1751940894393,0.03,148.78,148.75,4.56134292]
[1751940894568,0.03,148.78,148.74,4.56134292]
[1751940896183,0.03,148.78,148.75,4.56134292]
[1751940896481,0.03,148.78,148.76,4.56134292]
[1751940897085,0.03,148.78,148.77,4.56134292]
[1751940897389,0.03,148.78,148.76,4.56134292]
[1751940898176,0.03,148.78,148.76,234.1]
[1751940898378,0.03,148.78,148.76,238.66134292]
[1751940899787,0.03,148.78,148.76,4.56134292]
[1751940899971,0.03,148.78,148.77,4.56134292]
[1751940900178,0.03,148.78,148.77,98.72528979]
[1751940901077,7.16,148.84,148.81,87.04]
[1751940901278,7.49379212,148.83,148.81,238.40134292]
[1751940901483,6.12284292,148.86,148.81,238.40134292]
[1751940901708,12.05513863,148.85,148.81,238.40134292]
[1751940901884,7.49379571,148.84,148.81,238.40134292]
[1751940902080,7.49379571,148.83,148.81,238.40134292]
[1751940902272,1.5615,148.86,148.81,233.84]
[1751940902477,4.56134292,148.84,148.81,233.84]
[1751940902670,7.49679704,148.83,148.81,233.84]
[1751940902872,4.56134292,148.85,148.81,233.84]
[1751940903079,7.49690538,148.84,148.81,233.84]
[1751940903290,7.49690538,148.83,148.81,233.84]
[1751940903592,4.56134292,148.85,148.81,238.40134292]
[1751940903786,7.49791881,148.84,148.81,238.40134292]
[1751940903989,4.56134292,148.85,148.81,238.40134292]
[1751940904179,7.49797196,148.84,148.81,238.40134292]
[1751940904495,4.56134292,148.85,148.81,238.40134292]
[1751940904695,7.49828756,148.84,148.81,238.40134292]
[1751940904885,4.56134292,148.85,148.81,238.40134292]
[1751940905090,7.49828756,148.84,148.81,91.60134292]
[1751940905283,4.56134292,148.85,148.81,91.60134292]
[1751940905598,7.49823609,148.84,148.81,91.60134292]
[1751940905797,4.56134292,148.85,148.81,91.60134292]
[1751940906093,4.59134292,148.87,148.82,4.56134292]
[1751940906397,7.49799245,148.86,148.82,87.04]
[1751940906594,0.03,148.87,148.85,4.56134292]
[1751940906773,0.03,148.87,148.85,91.60134292]
[1751940906976,0.03,148.87,148.86,4.56134292]
[1751940907195,0.03,148.87,148.85,87.04]
[1751940907398,0.03,148.87,148.85,91.60134292]
[1751940908199,0.03,148.87,148.86,4.56134292]
[1751940908702,0.03,148.87,148.86,91.60134292]
[1751940909502,0.03,148.87,148.86,238.40134292]
[1751940910200,0.03,148.87,148.86,305.47906426]
[1751940910376,0.03,148.91,148.89,4.56134292]
[1751940910572,0.03,148.91,148.89,91.57134292]
[1751940910776,0.03,148.91,148.9,4.56134292]
[1751940910976,0.03,148.91,148.9,91.57134292]
[1751940912381,0.03,148.91,148.9,98.28725964]
[1751940912718,0.03,148.91,148.9,132.64725964]
[1751940913179,0.03,148.91,148.9,281.18452121]
[1751940915378,0.2,148.93,148.91,93.69502733]
[1751940915580,0.2,148.93,148.92,38.90134292]
[1751940915775,0.2,148.93,148.92,272.68134292]
[1751940916280,0.2,148.93,148.92,298.68134292]
[1751940916775,0.2,148.93,148.92,298.82350449]
[1751940917383,0.2,148.93,148.92,305.53851926]
[1751940918807,0.2,148.93,148.92,279.53851926]
[1751940919110,0.2,148.93,148.92,132.73851926]
[1751940920098,0.2,148.93,148.92,45.75851926]
[1751940921001,0.2,148.93,148.92,64.40816812]
[1751940921494,0.2,148.93,148.92,151.70816812]
[1751940921689,0.2,148.93,148.92,41.19717634]
[1751940921911,0.2,148.93,148.92,45.75851926]
[1751940923518,0.2,148.95,148.92,81.19570505]
[1751940923704,0.2,148.95,148.94,49.35315335]
[1751940923901,0.2,148.95,148.94,91.03867771]
[1751940924292,0.2,148.95,148.94,90.36726641]
[1751940924532,0.2,148.99,148.96,86.9]
[1751940924826,0.2,148.99,148.97,34.32]
[1751940924986,0.2,148.99,148.96,233.7]
[1751940924987,4.56134292,148.98,148.96,233.7]
[1751940925696,4.56134292,148.97,148.95,86.9]
[1751940927712,4.56134292,148.98,148.95,86.9]
[1751940929314,4.76134292,148.99,148.95,121.22]
[1751940929691,4.76134292,148.99,148.95,125.78134292]
[1751940930293,4.76134292,148.99,148.95,121.22]
[1751940930608,0.2,148.99,148.95,279.29488307]
[1751940930790,0.2,148.99,148.97,4.56134292]
[1751940930990,0.2,148.99,148.97,125.78134292]
[1751940932314,0.2,148.99,148.97,127.93267441]
[1751940932507,0.2,148.99,148.97,121.22]
[1751940932803,0.2,148.99,148.98,4.56134292]
[1751940933108,0.2,148.99,148.98,91.46134292]
[1751940934215,0.2,148.99,148.98,238.40350449]
[1751940934408,0.2,148.99,148.98,245.11581486]
[1751940936493,0.2,148.99,148.98,238.26134292]
[1751940936902,4.76134292,148.99,148.97,86.9]
[1751940937519,4.56134292,148.98,148.97,86.9]
[1751940937706,4.56134292,148.98,148.95,86.9]
[1751940938014,4.56134292,148.96,148.95,86.9]
[1751940940206,4.56134292,148.97,148.95,86.9]
[1751940940517,4.76134292,148.99,148.95,91.46134292]
[1751940940896,4.76134292,148.99,148.96,34.32]
[1751940941191,4.76134292,148.99,148.95,121.22]
[1751940941192,11.47320557,148.99,148.95,121.22]
[1751940941399,4.56134292,148.96,148.94,86.96]
[1751940941609,1.6566,148.98,148.94,86.96]
[1751940941610,4.56134292,148.95,148.94,86.96]
[1751940942111,4.56134292,148.95,148.94,0.06]
[1751940944515,23.21099178,148.95,148.94,0.06]
[1751940944820,26.45329054,148.95,148.94,0.06]
[1751940946519,25.36331116,148.95,148.94,0.06]
[1751940946758,33.16695284,148.95,148.94,0.06]
[1751940947224,40.97059452,148.95,148.94,0.06]
[1751940948831,26.45329054,148.95,148.94,0.06]
[1751940949009,7.80364168,148.95,148.94,0.06]
[1751940953330,33.16695284,148.95,148.94,0.06]
[1751940953633,33.96539051,148.95,148.94,0.06]
[1751940953925,26.45329054,148.95,148.94,0.06]
[1751940956640,33.16695284,148.95,148.94,0.06]
[1751940957138,26.45329054,148.95,148.94,0.06]
[1751940958026,33.16695284,148.95,148.94,0.06]
[1751940959210,26.45329054,148.95,148.94,0.06]
[1751940959522,7.80364168,148.95,148.94,0.06]
[1751940959933,6.4025,148.99,148.94,86.96]
[1751940959934,7.80364168,148.96,148.94,86.96]
[1751940961414,7.80364168,148.95,148.94,86.96]
[1751940962927,26.45329054,148.95,148.94,86.96]
[1751940963132,33.16695284,148.95,148.94,86.96]
[1751940963524,40.97059452,148.95,148.94,0.06]
[1751940963729,44.64964886,148.94,148.87,86.9]
[1751940963916,7.80364168,148.88,148.84,93.2085]
[1751940964136,18.64964886,148.92,148.84,93.2085]
[1751940964137,7.80364168,148.9,148.86,7.80364168]
[1751940964435,7.80364168,148.91,148.87,33.80364168]
[1751940964637,7.80364168,148.91,148.87,120.70364168]
[1751940965043,7.80364168,148.91,148.87,267.50364168]
[1751940965240,18.64964886,148.94,148.88,7.80364168]
[1751940965539,7.80364168,148.92,148.88,233.7]
[1751940966940,4.55274686,148.92,148.88,233.7]
[1751940969145,4.55274686,148.93,148.89,4.55274686]
[1751940969335,16.64131779,148.99,148.92,4.55274686]
[1751940969530,4.55274686,148.96,148.92,91.45274686]
[1751940969842,4.55274686,148.96,148.92,86.9]
[1751940970536,18.64964886,148.97,148.93,4.55274686]
[1751940970537,4.55274686,148.97,148.93,4.55274686]
[1751940970727,4.55274686,148.97,148.92,233.7]
[1751940970728,4.55274686,148.98,148.94,4.55274686]
[1751940971557,4.55274686,148.98,148.94,11.2667943]
[1751940971728,4.55274686,148.98,148.94,4.55274686]
[1751940971927,7.32,148.99,148.94,11.26676411]
[1751940972138,7.32,148.99,148.95,4.55274686]
[1751940972350,7.32,148.99,148.96,4.55274686]
[1751940972848,0.2,148.99,148.96,4.55274686]
[1751940973237,4.75274686,148.99,148.94,265.78004686]
[1751940973537,4.55274686,148.98,148.94,265.78004686]
[1751940974451,4.75274686,148.99,148.94,265.78004686]
[1751940974754,4.55274686,148.98,148.94,265.78004686]
[1751940975132,4.55274686,148.98,148.94,261.2273]
[1751940975334,4.55274686,148.96,148.94,233.7]
[1751940975534,0.2,148.99,148.97,82.34725314]
[1751940975746,23.20239572,148.98,148.97,82.34725314]
[1751940976534,27.75514258,148.98,148.97,82.34725314]
[1751940976740,42.53191896,148.98,148.91,229.14725314]
[1751940977057,4.55274686,148.92,148.91,229.14725314]
[1751940977352,4.55274686,148.96,148.91,229.14725314]
[1751940977353,4.55274686,148.93,148.91,229.14725314]
[1751940978249,4.55274686,148.92,148.91,229.14725314]
[1751940978636,4.55274686,148.92,148.91,82.34725314]
[1751940979951,23.20239572,148.92,148.88,82.34725314]
[1751940980259,4.55274686,148.89,148.88,82.34725314]
[1751940981540,4.55274686,148.89,148.86,82.34725314]
[1751940981739,18.64964886,148.9,148.86,82.34725314]
[1751940982058,4.55274686,148.87,148.86,82.34725314]
[1751940982637,4.55274686,148.87,148.84,82.34725314]
[1751940982840,4.55274686,148.86,148.84,82.34725314]
[1751940986055,4.55274686,148.87,148.84,82.34725314]
[1751940986655,4.55274686,148.86,148.84,82.34725314]
[1751940986866,4.55274686,148.85,148.84,82.34725314]
[1751940988241,4.55274686,148.86,148.84,82.34725314]
[1751940989847,4.55274686,148.85,148.84,82.34725314]
[1751940990650,25.36660133,148.88,148.84,82.34725314]
[1751940992643,18.64964886,148.88,148.84,82.34725314]
[1751940993971,18.64964886,148.86,148.84,82.34725314]
[1751940996874,25.36742766,148.86,148.84,82.34725314]
[1751940997554,18.64964886,148.86,148.84,82.34725314]
[1751940997881,34.32,148.87,148.84,82.34725314]
[1751940998260,18.64964886,148.87,148.84,82.34725314]
[1751940999260,18.64964886,148.89,148.84,82.34725314]
[1751941000069,25.36616628,148.89,148.84,82.34725314]
[1751941000373,59.66616628,148.89,148.84,82.34725314]
[1751941001469,52.94964886,148.89,148.84,82.34725314]
[1751941002076,59.66615365,148.89,148.84,82.34725314]
[1751941003170,59.66615365,148.89,148.84,82.40725314]
[1751941006678,52.94964886,148.89,148.84,82.40725314]
[1751941006856,18.64964886,148.89,148.84,82.40725314]
[1751941007174,25.36602671,148.89,148.84,82.40725314]
[1751941008863,0.14216157,148.88,148.84,82.40725314]
[1751941009069,18.64964886,148.86,148.84,82.40725314]
[1751941009778,25.36750689,148.86,148.84,82.40725314]
[1751941019285,18.64964886,148.86,148.84,82.40725314]
[1751941019486,18.64964886,148.9,148.84,229.20725314]
[1751941019663,34.34,148.89,148.84,82.40725314]
[1751941020375,0.14216157,148.87,148.84,82.40725314]
[1751941020684,18.64964886,148.85,148.84,82.40725314]
[1751941021183,25.36782151,148.85,148.84,82.40725314]
[1751941022088,25.50998308,148.85,148.84,82.40725314]
[1751941022266,33.01915944,148.85,148.84,82.40725314]
[1751941023581,18.64964886,148.81,148.8,0.1]
[1751941023895,60.49882522,148.81,148.8,0.1]
[1751941025203,52.98964886,148.81,148.8,0.1]
[1751941027578,52.98964886,148.81,148.8,82.44725314]
[1751941028275,34.34,148.81,148.8,82.44725314]
[1751941028484,16.79088162,148.9,148.8,82.44725314]
[1751941028485,18.64964886,148.86,148.82,82.34725314]
[1751941028686,18.64964886,148.84,148.82,82.34725314]
[1751941029705,53.00964886,148.83,148.82,82.34725314]
[1751941029885,60.52099904,148.83,148.82,82.34725314]
[1751941030795,53.00964886,148.83,148.82,82.34725314]
[1751941033294,60.52556842,148.83,148.82,82.34725314]
[1751941036183,53.00964886,148.83,148.82,82.34725314]
[1751941042204,59.72872431,148.83,148.82,82.34725314]
[1751941042582,59.72872431,148.83,148.8,0.1]
[1751941042583,44.64964886,148.81,148.8,82.44725314]
[1751941042792,93.70957051,148.81,148.8,82.44725314]
[1751941043306,93.70957051,148.81,148.8,0.1]
[1751941043510,93.70957051,148.81,148.8,1e-08]
[1751941043695,25.51224053,148.8,148.79,0.1]
[1751941043900,33.03000061,148.8,148.79,0.1]
[1751941045389,33.03000061,148.8,148.79,1e-08]
[1751941045800,44.79181043,148.77,148.76,0.1]
[1751941045981,86.62957051,148.77,148.76,0.1]
[1751941046181,86.62957051,148.77,148.76,1e-08]
[1751941046377,26.0,148.73,148.69,82.44725314]
[1751941046597,52.96964886,148.72,148.69,82.44725314]
[1751941047802,59.69385063,148.72,148.69,82.44725314]
[1751941049111,0.14216157,148.71,148.69,82.44725314]
[1751941049296,52.96964886,148.7,148.69,82.44725314]
[1751941051521,59.83675999,148.7,148.69,0.1]
[1751941051683,44.79181043,148.67,148.66,0.1]
[1751941051884,85.97811701,148.67,148.66,0.1]
[1751941052386,20.36281043,148.66,148.65,0.06]
[1751941052614,18.64964886,148.62,148.57,6.15005131]
[1751941052815,18.64964886,148.6,148.57,1.5924]
[1751941052996,34.48,148.61,148.58,4.55765131]
[1751941053312,53.12964886,148.62,148.59,4.55765131]
[1751941053511,53.12964886,148.62,148.57,1.5924]
[1751941053818,53.12964886,148.62,148.59,4.55765131]
[1751941053819,34.48,148.62,148.59,4.55765131]
[1751941054024,34.48,148.63,148.6,4.55765131]
[1751941054225,34.48,148.64,148.61,4.55765131]
[1751941054387,7.1,148.66,148.62,4.55765131]
[1751941054590,7.1,148.66,148.62,235.60955314]
[1751941054790,7.1,148.66,148.65,4.55765131]
[1751941055013,18.64964886,148.72,148.65,86.90490445]
[1751941055193,18.64964886,148.72,148.65,82.34725314]
[1751941055194,18.64964886,148.7,148.65,82.34725314]
[1751941055389,18.64964886,148.68,148.63,83.98545314]
[1751941055602,34.5,148.67,148.63,82.34725314]
[1751941056396,34.5,148.67,148.63,86.90490445]
[1751941056600,34.5,148.67,148.64,4.55765131]
[1751941056804,34.5,148.67,148.63,86.90490445]
[1751941057420,18.64964886,148.66,148.63,82.34725314]
[1751941057627,18.64964886,148.64,148.62,82.34725314]
[1751941057794,34.52,148.64,148.62,82.34725314]
[1751941058129,6.72481642,148.71,148.63,4.55765131]
[1751941058305,53.16964886,148.7,148.64,4.55765131]
[1751941058913,18.64964886,148.68,148.65,4.55765131]
[1751941059104,18.64964886,148.68,148.65,86.90490445]
[1751941060025,18.64964886,148.66,148.65,82.34725314]
[1751941060638,25.3764079,148.66,148.63,82.34725314]
[1751941060832,18.64964886,148.64,148.63,82.34725314]
[1751941061141,18.64964886,148.64,148.6,82.34725314]
[1751941061427,34.52,148.63,148.6,86.90490445]
[1751941061640,34.52,148.65,148.61,4.55765131]
[1751941061808,18.64964886,148.64,148.6,82.34725314]
[1751941061999,34.52,148.65,148.62,4.55765131]
[1751941062204,34.52,148.65,148.62,86.90490445]
[1751941062503,34.52,148.65,148.63,4.55765131]
[1751941062812,53.18964886,148.68,148.64,4.55765131]
[1751941063012,18.64964886,148.71,148.65,4.55765131]
[1751941063221,34.54,148.7,148.65,86.90490445]
[1751941063427,7.1,148.72,148.65,82.34725314]
[1751941063725,0.14216157,148.7,148.65,82.34725314]
[1751941063935,18.64964886,148.67,148.65,82.34725314]
[1751941064229,53.18964886,148.67,148.62,86.90490445]
[1751941065435,53.18964886,148.67,148.64,4.55765131]
[1751941065926,53.18964886,148.67,148.63,4.55765131]
[1751941066106,53.18964886,148.67,148.62,82.34725314]
[1751941066301,53.18964886,148.67,148.63,4.55765131]
[1751941066921,53.18964886,148.67,148.62,82.34725314]
[1751941067118,53.18964886,148.67,148.63,4.55765131]
[1751941067631,34.54,148.67,148.64,4.55765131]
[1751941067841,18.64964886,148.7,148.65,4.55765131]
[1751941068001,18.64964886,148.7,148.65,233.70490445]
[1751941068002,34.54,148.69,148.65,233.70490445]
[1751941068399,18.64964886,148.7,148.65,233.70490445]
[1751941068717,34.54,148.69,148.65,233.70490445]
[1751941068919,34.54,148.69,148.66,4.55765131]
[1751941069225,34.54,148.69,148.65,233.70490445]
[1751941069436,18.64964886,148.68,148.65,229.14725314]
[1751941070309,0.03,148.67,148.65,82.34725314]
[1751941070628,53.18964886,148.66,148.65,82.34725314]
[1751941071016,34.54,148.66,148.65,82.34725314]
[1751941074216,0.03,148.67,148.65,86.90490445]
[1751941074819,18.67964886,148.67,148.65,82.34725314]
[1751941076641,0.03,148.67,148.65,82.34725314]
[1751941076838,34.55,148.67,148.65,82.34725314]
[1751941081432,18.64964886,148.7,148.67,82.31725314]
[1751941081636,34.48,148.71,148.67,82.31725314]
[1751941081861,25.84964886,148.73,148.68,4.55765131]
[1751941082033,7.2,148.73,148.7,4.55765131]
[1751941082337,7.2,148.73,148.71,4.55765131]
[1751941082521,7.2,148.73,148.71,86.87490445]
[1751941083247,7.2,148.73,148.72,4.55765131]
[1751941083936,7.2,148.73,148.72,86.87490445]
[1751941084242,7.2,148.73,148.72,82.31725314]
[1751941084440,25.84964886,148.73,148.72,82.31725314]
[1751941085032,7.2,148.73,148.72,82.31725314]
[1751941086640,7.2,148.73,148.72,86.87490445]
[1751941086844,7.2,148.73,148.72,82.31725314]
[1751941087344,7.2,148.73,148.72,86.87490445]
[1751941088123,7.2,148.79,148.72,86.87490445]
[1751941088325,18.64964886,148.77,148.74,4.55765131]
[1751941089029,53.12964886,148.77,148.74,4.55765131]
[1751941090048,53.12964886,148.77,148.73,4.55765131]
[1751941090418,18.64964886,148.75,148.72,4.55765131]
[1751941090622,18.64964886,148.75,148.71,7.9949]
[1751941090623,18.64964886,148.75,148.71,12.55255131]
[1751941092143,18.64964886,148.75,148.72,4.55765131]
[1751941092348,34.46,148.76,148.72,4.55765131]
[1751941092648,34.51,148.77,148.74,4.55765131]
[1751941093048,34.51,148.77,148.71,14.71927563]
[1751941093049,34.51,148.77,148.73,4.55765131]
[1751941093441,18.64964886,148.76,148.72,4.55765131]
[1751941094042,34.51,148.77,148.74,4.55765131]
[1751941094043,0.03,148.77,148.74,4.55765131]
[1751941094225,34.51,148.77,148.74,4.55765131]
[1751941095750,34.51,148.77,148.74,86.87490445]
[1751941095940,34.51,148.77,148.74,82.31725314]
[1751941096249,18.64964886,148.76,148.74,82.31725314]
[1751941097946,0.03,148.77,148.75,4.55765131]
[1751941098256,0.03,148.77,148.76,4.55765131]
[1751941099459,0.03,148.77,148.75,4.55765131]
[1751941099644,0.03,148.77,148.74,4.55765131]
[1751941099952,34.53,148.77,148.74,4.55765131]
[1751941101652,18.64964886,148.76,148.74,4.55765131]
[1751941102554,34.53,148.77,148.74,4.55765131]
[1751941103653,34.53,148.77,148.75,4.55765131]
[1751941104253,34.53,148.77,148.72,26.0]
[1751941104563,34.53,148.77,148.74,4.55765131]
[1751941107461,34.53,148.77,148.74,233.67490445]
[1751941111647,7.2,148.79,148.78,82.28725314]
[1751941114353,7.2,148.79,148.78,86.84490445]
[1751941114555,18.64964886,148.82,148.78,86.84490445]
[1751941114757,53.08964886,148.82,148.79,4.55765131]
[1751941115142,18.64964886,148.82,148.79,4.55765131]
[1751941116354,18.64964886,148.82,148.79,233.64490445]
[1751941118343,0.03,148.84,148.79,233.64490445]
[1751941118543,18.67964886,148.84,148.8,4.55765131]
[1751941118745,53.09964886,148.84,148.8,4.55765131]
[1751941119037,18.67964886,148.84,148.81,4.55765131]
[1751941119241,18.67964886,148.84,148.81,233.64490445]
[1751941121769,0.03,148.84,148.81,233.64490445]
[1751941121953,0.03,148.84,148.83,4.55765131]
[1751941123364,0.03,148.84,148.83,12.68905131]
[1751941123544,0.03,148.84,148.83,12.83121288]
[1751941124355,0.03,148.84,148.83,53.95028833]
[1751941124550,0.03,148.84,148.83,79.95028833]
[1751941126252,0.03,148.84,148.83,162.23754147]
[1751941126454,0.2,148.88,148.87,0.14216157]
[1751941126777,0.2,148.88,148.87,86.98706602]
[1751941126966,0.2,148.88,148.87,99.53851733]
[1751941127673,7.21,148.96,148.9,26.0]
[1751941127973,7.21,148.96,148.94,4.55765131]
[1751941128480,0.03,148.96,148.95,4.55765131]
[1751941131679,0.03,148.96,148.95,30.55765131]
[1751941132780,0.03,148.96,148.95,124.25837963]
[1751941133160,0.03,148.96,148.95,158.63837963]
[1751941135267,0.03,148.96,148.95,142.80941471]
[1751941135468,0.03,148.96,148.95,154.08072832]
[1751941136686,0.03,148.96,148.95,158.63837963]
[1751941137979,0.2,148.99,148.96,0.14216157]
[1751941138155,0.2,148.99,148.98,30.69981288]
[1751941138363,0.2,148.99,148.98,112.98706602]
[1751941138582,0.2,148.99,148.98,119.69937639]
[1751941138787,0.03,149.0,148.99,0.14216157]
[1751941139087,0.2,149.06,149.04,26.0]
[1751941139259,0.03,149.1,149.08,81.48725314]
[1751941139459,0.03,149.1,149.06,4.55765131]
[1751941139661,0.03,149.1,149.09,4.55765131]
[1751941140071,0.03,149.1,149.09,69.65746419]
[1751941140388,0.03,149.1,149.09,60.56216157]
[1751941140585,0.03,149.1,149.09,60.42]
[1751941140763,0.03,149.1,149.09,64.97765131]
[1751941140964,0.03,149.1,149.05,7.7599]
[1751941141165,18.67964886,149.1,149.03,4.55765131]
[1751941141568,0.03,149.1,149.06,26.0]
[1751941142077,0.03,149.1,149.08,4.55765131]
[1751941142271,0.03,149.1,149.07,4.55765131]
[1751941142667,0.03,149.1,149.06,30.55765131]
[1751941142883,0.03,149.1,149.03,60.46]
[1751941143070,0.03,149.1,149.04,4.55765131]
[1751941143277,0.03,149.1,149.05,4.55765131]
[1751941143477,0.03,149.1,149.06,4.55765131]
[1751941143677,0.03,149.1,149.07,4.55765131]
[1751941144072,0.03,149.1,149.08,4.55765131]
[1751941144271,0.03,149.1,149.04,26.14216157]
[1751941144789,0.03,149.1,149.08,4.55765131]
[1751941144991,0.03,149.1,149.09,4.55765131]
[1751941145296,0.03,149.1,149.09,87.3]
[1751941145976,18.67964886,149.1,149.09,87.3]
[1751941146493,18.67964886,149.1,149.06,87.3]
[1751941146674,6.73705835,149.1,149.06,87.3]
[1751941146985,18.67964886,149.1,149.06,87.3]
[1751941147184,25.38662557,149.1,149.06,87.3]
[1751941147366,18.67964886,149.1,149.06,87.3]
[1751941147565,18.67964886,149.1,149.06,95.08852225]
[1751941147868,0.03,149.1,149.06,95.08852225]
[1751941148287,0.03,149.1,149.07,7.78852225]
[1751941148897,0.03,149.1,149.07,95.08852225]
[1751941149579,0.03,149.1,149.09,7.78852225]
[1751941149781,0.03,149.1,149.09,95.08852225]
[1751941150173,0.2,149.11,149.1,87.41216157]
[1751941150378,0.2,149.11,149.1,242.00068382]
[1751941151493,0.2,149.11,149.1,241.85852225]
[1751941151682,0.2,149.11,149.1,234.07]
[1751941152276,0.2,149.11,149.1,241.85852225]
[1751941156485,0.2,149.11,149.1,87.27]
[1751941158680,6.90660043,149.11,149.05,26.0]
[1751941159002,6.90660043,149.11,149.07,7.78852225]
[1751941159003,0.2,149.11,149.07,7.78852225]
[1751941160001,0.2,149.11,149.05,260.1]